bitfinex/quotes_SOLUSD_20241113
["timestamp","ask_amount","ask_price","bid_price","bid_amount"]
[1731525011404,4.5983,217.47,217.33,0.2]
[1731525011590,4.5983,217.47,217.41,43.16355816]
[1731525011795,43.28904816,217.46,217.39,43.16355816]
[1731525012002,0.12549,217.43,217.35,43.16355816]
[1731525012211,43.16355816,217.37,217.29,0.4286397]
[1731525012386,43.16355816,217.35,217.29,0.4286397]
[1731525012586,20.0,217.34,217.29,43.59219786]
[1731525012884,23.776884,217.37,217.29,0.4286397]
[1731525013089,43.16355816,217.33,217.29,0.4286397]
[1731525013409,23.776884,217.37,217.29,43.59219786]
[1731525013410,4.6015,217.32,217.29,43.59219786]
[1731525013602,4.6,217.39,217.31,43.16355816]
[1731525013806,67.76355816,217.39,217.3,43.16355816]
[1731525013983,0.12549,217.36,217.29,0.4286397]
[1731525014306,43.16355816,217.35,217.29,0.4286397]
[1731525014607,43.776884,217.34,217.29,0.4286397]
[1731525014798,0.12549,217.33,217.29,0.4286397]
[1731525015201,48.504274,217.3,217.29,0.4286397]
[1731525015404,48.604274,217.3,217.29,3.97e-05]
[1731525015907,48.504274,217.3,217.29,3.97e-05]
[1731525016587,4.6019,217.3,217.29,3.97e-05]
[1731525016992,4.6002,217.38,217.29,3.97e-05]
[1731525017308,11.56136471,217.38,217.33,43.16355816]
[1731525017498,43.16355816,217.34,217.29,3.97e-05]
[1731525017702,43.28904816,217.3,217.29,3.97e-05]
[1731525017915,0.1,217.34,217.29,3.97e-05]
[1731525017916,43.16355816,217.34,217.29,3.97e-05]
[1731525018088,43.16355816,217.36,217.29,3.97e-05]
[1731525018482,89.22652287,217.38,217.3,43.16355816]
[1731525018702,89.22652287,217.38,217.29,3.97e-05]
[1731525018902,0.22549,217.35,217.29,3.97e-05]
[1731525019204,4.6019,217.3,217.29,3.97e-05]
[1731525019417,47.89094816,217.3,217.29,3.97e-05]
[1731525019914,91.66783216,217.3,217.29,3.97e-05]
[1731525020706,91.86777316,217.3,217.29,3.97e-05]
[1731525020892,91.86777316,217.3,217.13,43.16355816]
[1731525020893,0.1,217.22,217.13,43.16355816]
[1731525021095,43.902374,217.19,217.11,43.16355816]
[1731525021410,43.902374,217.15,217.07,43.59219786]
[1731525022016,20.12549,217.11,217.07,0.4286397]
[1731525022217,20.12549,217.11,217.05,43.16355816]
[1731525022218,20.0,217.11,217.05,43.16355816]
[1731525022517,43.16355816,217.14,217.07,43.16355816]
[1731525022518,20.12549,217.13,217.07,43.16355816]
[1731525022699,20.12549,217.11,217.07,43.16355816]
[1731525023107,20.12549,217.11,217.05,43.16355816]
[1731525023299,20.12549,217.11,216.95,4.2271213]
[1731525023300,23.976825,217.04,216.95,0.5397213]
[1731525023494,20.0,216.96,216.95,0.5397213]
[1731525023689,43.776884,216.96,216.95,0.5397213]
[1731525024095,20.0,216.96,216.95,0.5397213]
[1731525024396,23.776884,216.99,216.95,0.5397213]
[1731525024612,43.16355816,216.97,216.95,0.5397213]
[1731525024809,43.902374,216.96,216.95,0.5397213]
[1731525025320,48.511474,216.96,216.95,2.13e-05]
[1731525026114,0.22549,216.91,216.71,0.1]
[1731525026415,44.002374,216.91,216.78,43.16355816]
[1731525026615,43.902374,216.91,216.82,43.16355816]
[1731525027303,48.512574,216.91,216.82,43.16355816]
[1731525027508,48.512574,216.91,216.84,43.16355816]
[1731525027697,48.512574,216.91,216.81,43.16355816]
[1731525027899,55.46969643,216.91,216.83,43.16355816]
[1731525028099,55.34420643,216.91,216.87,43.16355816]
[1731525028300,31.56732243,216.91,216.87,43.16355816]
[1731525028510,11.5199,217.02,216.89,43.16355816]
[1731525028813,4.6076,217.03,217.01,43.16355816]
[1731525029112,4.6048,217.16,217.01,43.16355816]
[1731525029315,4.6048,217.16,216.98,0.1]
[1731525029316,4.6048,217.16,217.07,43.16355816]
[1731525029496,6.96600398,217.15,217.09,43.16355816]
[1731525030295,6.96600398,217.15,217.11,43.16355816]
[1731525030503,23.0201,217.21,217.13,43.16355816]
[1731525030504,4.6038,217.21,217.13,43.16355816]
[1731525030696,4.6038,217.21,217.16,43.16355816]
[1731525030892,4.6038,217.21,217.14,43.16355816]
[1731525031110,4.6038,217.21,217.16,43.16355816]
[1731525031419,4.6038,217.21,217.18,43.16355816]
[1731525031802,0.12549,217.2,217.14,43.16355816]
[1731525032002,4.6038,217.21,217.16,43.16355816]
[1731525033002,16.1133,217.21,217.12,43.16355816]
[1731525033197,16.1133,217.21,216.9,483.22868414]
[1731525033198,0.12549,217.17,217.07,43.16355816]
[1731525033399,4.6048,217.16,217.09,43.16355816]
[1731525033618,4.6036,217.22,217.15,43.16355816]
[1731525033805,6.99485375,217.23,217.03,43.16355816]
[1731525033806,6.99485375,217.23,217.19,43.16355816]
[1731525034012,43.16355816,217.28,217.15,43.16355816]
[1731525034013,43.16355816,217.25,217.15,43.16355816]
[1731525034211,6.99809726,217.22,217.17,43.16355816]
[1731525034530,6.99809726,217.22,217.01,0.1]
[1731525034531,43.16355816,217.18,217.01,0.1]
[1731525034702,43.16355816,217.15,216.98,12.1794]
[1731525034898,43.16355816,217.17,217.09,43.16355816]
[1731525035124,0.12549,217.16,217.07,43.16355816]
[1731525035439,23.776884,217.12,217.03,43.16355816]
[1731525035633,0.12549,217.09,217.01,43.16355816]
[1731525035916,0.12549,217.09,216.99,43.16355816]
[1731525035917,20.0,217.07,216.99,43.16355816]
[1731525036213,20.0,217.05,216.99,43.16355816]
[1731525036620,20.0,217.05,216.97,43.16355816]
[1731525037014,20.0,217.03,216.95,43.16355816]
[1731525037317,28.384684,217.02,216.95,43.16355816]
[1731525037506,23.776884,217.0,216.95,43.16355816]
[1731525037815,24.6078,217.03,216.97,43.16355816]
[1731525038019,4.6078,217.03,216.95,43.16355816]
[1731525038212,4.6078,217.03,216.97,43.16355816]
[1731525039030,4.6078,217.03,216.95,43.16355816]
[1731525039407,4.6078,217.03,216.97,43.16355816]
[1731525039916,4.6078,217.03,216.99,43.16355816]
[1731525040515,4.73199,217.08,216.99,43.16355816]
[1731525040724,4.6057,217.12,217.05,43.16355816]
[1731525040919,4.6057,217.12,217.07,43.16355816]
[1731525041108,0.12549,217.09,217.01,43.16355816]
[1731525041421,4.6057,217.12,217.07,43.16355816]
[1731525041617,47.76735816,217.21,217.11,43.16355816]
[1731525041925,47.76735816,217.21,217.13,43.16355816]
[1731525041926,4.6038,217.21,217.13,43.16355816]
[1731525042120,47.76735816,217.21,217.13,43.16355816]
[1731525042424,0.12549,217.2,217.13,43.16355816]
[1731525042733,4.6038,217.21,217.17,43.16355816]
[1731525042904,43.16355816,217.2,217.1,43.16355816]
[1731525043299,0.12549,217.17,217.08,43.16355816]
[1731525043523,16.1133,217.21,217.03,43.26355816]
[1731525043726,16.1133,217.21,217.13,43.16355816]
[1731525043904,23.902374,217.2,217.13,43.16355816]
[1731525044099,23.902374,217.2,217.04,3.6859]
[1731525044100,43.16355816,217.18,217.09,43.16355816]
[1731525044313,23.902374,217.17,217.09,43.16355816]
[1731525044506,4.6048,217.16,217.11,43.16355816]
[1731525044702,4.6048,217.16,217.13,43.16355816]
[1731525045518,0.12549,217.15,217.11,43.16355816]
[1731525045828,4.6048,217.16,217.13,43.16355816]
[1731525046224,6.99801704,217.19,217.15,43.16355816]
[1731525046428,4.6029,217.25,217.15,43.16355816]
[1731525046719,43.16355816,217.21,217.03,0.1]
[1731525046918,50.15975195,217.23,217.14,43.16355816]
[1731525047124,6.99619379,217.23,217.18,43.16355816]
[1731525047316,43.16355816,217.19,217.01,0.1]
[1731525047502,43.16355816,217.19,217.0,4.6082]
[1731525047503,0.12549,217.18,217.0,4.6082]
[1731525047701,0.12549,217.18,217.09,43.16355816]
[1731525048013,0.12549,217.13,217.04,43.16355816]
[1731525048210,0.12549,217.13,217.06,43.16355816]
[1731525048734,0.12549,217.13,216.94,32.8062]
[1731525048735,23.776884,217.11,217.02,43.16355816]
[1731525049023,43.16355816,217.08,216.98,43.16355816]
[1731525049205,43.16355816,217.06,216.98,43.16355816]
[1731525049607,23.776884,217.07,216.98,43.16355816]
[1731525050314,43.16355816,217.1,217.02,43.16355816]
[1731525050520,43.16355816,217.12,217.02,43.16355816]
[1731525051026,23.776884,217.11,217.02,43.16355816]
[1731525051432,0.12549,217.1,217.02,43.16355816]
[1731525051607,0.12549,217.06,216.98,43.16355816]
[1731525051809,43.16355816,217.08,216.98,43.16355816]
[1731525052007,43.16355816,217.02,216.93,43.16355816]
[1731525052434,23.776884,217.05,216.97,43.16355816]
[1731525052731,4.73289,217.04,216.97,43.16355816]
[1731525052927,47.89644816,217.04,216.95,43.16355816]
[1731525053314,20.0,217.01,216.9,460.0]
[1731525053626,43.16355816,216.92,216.9,460.0]
[1731525053833,43.902374,216.91,216.9,460.0]
[1731525054141,44.002374,216.91,216.9,454.9771]
[1731525054313,43.16355816,216.92,216.9,454.9771]
[1731525054732,4.6097,216.93,216.91,43.16355816]
[1731525055207,4.6097,216.93,216.9,454.9771]
[1731525055922,43.16355816,216.92,216.9,454.9771]
[1731525056126,23.902374,216.91,216.9,454.9771]
[1731525056420,4.6097,216.93,216.9,454.9771]
[1731525056620,24.6097,216.93,216.9,454.9771]
[1731525056821,4.6097,216.93,216.9,498.14065816]
[1731525057026,4.6097,216.93,216.92,43.16355816]
[1731525057209,7.10621817,216.95,216.92,43.16355816]
[1731525057210,0.13828417,216.95,216.92,86.32711632]
[1731525057411,4.6095,216.94,216.9,454.9771]
[1731525057826,0.13828417,216.95,216.9,454.9771]
[1731525057827,0.13828417,216.95,216.93,43.16355816]
[1731525058028,4.74778417,216.95,216.93,43.16355816]
[1731525058209,4.74778417,216.95,216.91,43.16355816]
[1731525058931,4.74778417,216.95,216.9,454.9771]
[1731525059113,4.6095,216.95,216.91,43.16355816]
[1731525060332,23.776884,216.94,216.9,454.9771]
[1731525060514,43.16355816,216.92,216.9,454.9771]
[1731525060715,23.902374,216.91,216.9,454.9771]
[1731525060931,28.512574,216.91,216.9,454.9771]
[1731525061124,4.6102,216.91,216.9,454.9771]
[1731525061630,0.12549,216.96,216.9,454.9771]
[1731525062320,0.12549,216.96,216.91,43.16355816]
[1731525062517,16.1312,216.97,216.91,43.16355816]
[1731525062728,16.1312,216.97,216.9,450.3741]
[1731525062729,4.73569,216.91,216.9,450.3741]
[1731525062912,4.73569,216.91,216.9,443.4703]
[1731525063314,4.73569,216.91,216.9,443.4933863]
[1731525064035,4.6102,216.91,216.9,443.4933863]
[1731525064229,4.6091,216.96,216.9,443.4933863]
[1731525064433,4.609,216.97,216.95,43.16355816]
[1731525064734,4.609,216.97,216.96,43.16355816]
[1731525064913,4.609,216.97,216.94,43.16355816]
[1731525065641,4.609,216.97,216.9,443.4703]
[1731525065843,43.16355816,216.95,216.9,443.4703]
[1731525066018,4.609,216.97,216.93,43.16355816]
[1731525066337,4.609,216.97,216.9,443.4703]
[1731525066338,4.609,216.97,216.95,43.16355816]
[1731525066518,4.6078,217.02,216.95,43.16355816]
[1731525066714,4.6078,217.02,216.98,43.16355816]
[1731525067015,43.16355816,217.07,216.92,43.26355816]
[1731525067016,4.607,217.06,217.0,43.16355816]
[1731525067231,4.6062,217.1,217.04,43.16355816]
[1731525067920,16.1216,217.1,216.98,0.1]
[1731525068121,43.16355816,217.09,217.0,43.16355816]
[1731525068325,4.6062,217.1,217.06,43.16355816]
[1731525068623,11.5068,217.27,217.08,43.16355816]
[1731525068935,54.91421096,217.26,217.18,43.16355816]
[1731525069130,54.91421096,217.26,217.2,43.16355816]
[1731525069131,11.7506528,217.26,217.2,43.16355816]
[1731525069310,4.6027,217.26,217.22,43.16355816]
[1731525069827,4.6027,217.26,217.2,43.16355816]
[1731525070139,43.16355816,217.22,217.1,43.16355816]
[1731525070433,4.6027,217.26,217.17,43.16355816]
[1731525070825,4.6027,217.26,217.21,43.16355816]
[1731525071417,4.6002,217.38,217.24,43.16355816]
[1731525071726,43.16355816,217.31,217.21,43.16355816]
[1731525071918,43.16355816,217.25,217.17,43.16355816]
[1731525072117,43.16355816,217.27,217.13,0.1]
[1731525072335,43.16355816,217.31,217.22,43.16355816]
[1731525072730,43.16355816,217.33,217.24,43.16355816]
[1731525072924,4.6015,217.32,217.24,43.16355816]
[1731525073126,43.16355816,217.29,217.2,43.16355816]
[1731525073337,43.16355816,217.29,217.18,0.1]
[1731525073338,43.16355816,217.27,217.18,43.16355816]
[1731525073838,43.16355816,217.31,217.24,43.16355816]
[1731525074027,4.6009,217.35,217.28,43.16355816]
[1731525074420,43.16355816,217.33,217.21,0.1]
[1731525074728,43.16355816,217.33,217.24,43.16355816]
[1731525074933,4.6008,217.35,217.28,43.16355816]
[1731525075536,47.76435816,217.35,217.26,43.16355816]
[1731525075718,47.76435816,217.35,217.17,3.7836]
[1731525075719,0.12549,217.32,217.24,43.16355816]
[1731525075919,43.16355816,217.31,217.22,43.16355816]
[1731525076130,0.12549,217.3,217.22,43.16355816]
[1731525076435,16.1029,217.35,217.02,18.4312]
[1731525076436,43.16355816,217.27,217.18,43.16355816]
[1731525076638,39.207141,217.35,217.16,43.16355816]
[1731525076639,23.776884,217.24,217.16,43.16355816]
[1731525077148,43.16355816,217.19,217.1,43.16355816]
[1731525077316,24.216884,217.16,217.08,43.16355816]
[1731525077519,24.216884,217.16,216.98,12.3575]
[1731525077520,43.16355816,217.11,216.98,12.3575]
[1731525077719,43.16355816,217.09,217.0,43.16355816]
[1731525077939,24.216884,217.16,217.05,43.16355816]
[1731525078137,23.776884,217.12,217.05,43.16355816]
[1731525078328,23.776884,217.14,217.07,43.16355816]
[1731525078524,23.776884,217.12,217.04,43.16355816]
[1731525079326,23.776884,217.12,216.96,30.2319]
[1731525079327,23.776884,217.08,217.0,43.16355816]
[1731525079528,43.16355816,217.07,216.98,43.16355816]
[1731525079728,43.16355816,217.05,216.96,43.16355816]
[1731525080220,43.16355816,217.05,216.91,0.1]
[1731525080221,23.776884,217.02,216.94,43.16355816]
[1731525080427,43.16355816,217.01,216.92,43.16355816]
[1731525080643,43.16355816,216.99,216.9,486.63385816]
[1731525080842,23.776884,216.98,216.9,486.63385816]
[1731525081232,4.6089,216.97,216.92,43.16355816]
[1731525082129,11.75484256,216.97,216.92,43.16355816]
[1731525082332,4.6089,216.97,216.9,443.4703]
[1731525082641,47.77245816,216.97,216.9,443.4703]
[1731525082840,4.6089,216.97,216.9,443.4703]
[1731525083044,4.6089,216.97,216.91,43.16355816]
[1731525084340,4.6085,216.99,216.95,43.16355816]
[1731525084553,4.6085,216.99,216.92,43.16355816]
[1731525084554,4.6074,217.04,216.97,43.16355816]
[1731525084727,11.5137,217.14,216.97,0.2]
[1731525084923,4.6055,217.13,216.99,0.1]
[1731525085122,4.6055,217.13,217.01,0.1]
[1731525085319,4.6055,217.13,216.99,0.1]
[1731525085652,4.6055,217.13,216.97,32.1702]
[1731525085831,4.6055,217.13,217.0,0.1]
[1731525086142,43.16355816,217.09,217.01,43.16355816]
[1731525086530,0.12549,217.08,216.99,43.16355816]
[1731525086942,0.12549,217.08,217.01,43.16355816]
[1731525087140,4.6068,217.07,216.99,43.16355816]
[1731525087443,0.12549,217.05,216.99,43.16355816]
[1731525087637,0.12549,217.05,216.92,43.26355816]
[1731525087638,0.12549,217.01,216.92,43.16355816]
[1731525087845,23.776884,217.01,216.92,43.16355816]
[1731525088349,23.776884,217.01,216.94,43.16355816]
[1731525088557,23.776884,217.05,216.98,43.16355816]
[1731525088744,23.776884,217.06,217.0,43.16355816]
[1731525088927,16.1238,217.07,216.92,43.16355816]
[1731525088928,4.6068,217.07,217.04,43.16355816]
[1731525089232,4.6059,217.11,217.06,43.16355816]
[1731525089433,4.6059,217.11,217.03,43.16355816]
[1731525089434,4.6059,217.11,217.09,43.16355816]
[1731525090346,18.64375202,217.17,217.09,43.16355816]
[1731525090347,4.6048,217.16,217.09,43.16355816]
[1731525090652,0.12549,217.11,217.03,43.16355816]
[1731525090833,16.117,217.16,217.08,43.16355816]
[1731525091027,0.12549,217.15,217.08,43.16355816]
[1731525091228,0.12549,217.13,216.98,0.1]
[1731525091538,43.16355816,217.13,217.04,43.16355816]
[1731525092138,16.1186,217.14,217.07,43.16355816]
[1731525092356,16.1186,217.14,217.09,43.16355816]
[1731525092528,16.1186,217.14,217.07,43.16355816]
[1731525092858,16.1186,217.14,217.09,43.16355816]
[1731525093022,16.1186,217.14,217.11,43.16355816]
[1731525093226,0.12549,217.19,217.11,43.16355816]
[1731525093423,0.12549,217.17,217.09,43.16355816]
[1731525093635,0.12549,217.13,217.05,43.16355816]
[1731525093844,0.12549,217.09,217.01,43.16355816]
[1731525094231,43.16355816,217.08,216.99,43.16355816]
[1731525094437,43.16355816,217.08,216.92,46.95145816]
[1731525094438,23.776884,217.07,217.01,43.16355816]
[1731525094747,23.776884,217.07,216.92,46.85145816]
[1731525094748,23.776884,217.05,216.97,43.16355816]
[1731525095143,23.902374,217.07,216.99,43.16355816]
[1731525095480,4.6067,217.08,217.03,43.16355816]
[1731525095629,4.6067,217.08,216.93,3.7877]
[1731525095630,4.6067,217.08,217.07,43.16355816]
[1731525095955,43.16355816,217.18,217.07,43.16355816]
[1731525096252,16.1167,217.17,217.09,43.16355816]
[1731525096547,16.1167,217.17,217.11,43.16355816]
[1731525096927,43.28904816,217.16,216.95,0.1]
[1731525097131,43.16355816,217.13,217.03,43.16355816]
[1731525097435,59.28025816,217.17,217.08,43.16355816]
[1731525097630,0.12549,217.14,217.06,43.16355816]
[1731525097835,0.12549,217.14,217.04,43.16355816]
[1731525098033,0.12549,217.12,217.04,43.16355816]
[1731525098424,23.902374,217.12,217.04,43.16355816]
[1731525098625,23.902374,217.12,216.82,24.16128056]
[1731525098626,0.12549,217.08,217.0,43.16355816]
[1731525098847,23.902374,217.08,217.0,43.16355816]
[1731525099350,4.6072,217.05,216.98,43.16355816]
[1731525099723,16.1252,217.05,216.98,43.16355816]
[1731525099929,16.1252,217.05,217.0,43.16355816]
[1731525100146,16.1175,217.16,217.04,43.16355816]
[1731525100327,16.1175,217.16,217.09,43.16355816]
[1731525100737,0.12549,217.15,217.09,43.16355816]
[1731525100944,4.6046,217.18,217.14,43.16355816]
[1731525101535,4.6046,217.18,217.16,43.16355816]
[1731525102230,4.6046,217.18,217.1,43.16355816]
[1731525102449,4.6046,217.18,217.12,43.16355816]
[1731525102642,4.6046,217.18,217.14,43.16355816]
[1731525103352,4.6046,217.18,217.1,43.16355816]
[1731525103556,4.6046,217.18,217.12,43.16355816]
[1731525104027,4.6046,217.18,217.1,43.16355816]
[1731525104230,4.6046,217.18,217.05,26.1998]
[1731525104231,4.6046,217.18,217.12,43.16355816]
[1731525104657,4.6046,217.18,217.1,43.16355816]
[1731525104850,4.6046,217.18,217.12,43.16355816]
[1731525105053,4.6036,217.22,217.16,43.16355816]
[1731525105265,4.6036,217.22,217.18,43.16355816]
[1731525105447,4.6019,217.3,217.2,43.16355816]
[1731525105634,4.6019,217.3,217.23,43.16355816]
[1731525105830,4.6019,217.3,217.21,43.16355816]
[1731525106036,43.16355816,217.23,217.06,3.8856]
[1731525106331,43.16355816,217.19,217.11,43.16355816]
[1731525107166,4.6044,217.18,217.11,43.16355816]
[1731525107451,4.6044,217.18,217.1,43.16355816]
[1731525107753,43.16355816,217.23,217.12,43.16355816]
[1731525107949,43.16355816,217.25,217.16,43.16355816]
[1731525108661,16.1074,217.29,217.18,43.16355816]
[1731525108662,43.16355816,217.27,217.18,43.16355816]
[1731525109348,4.6027,217.26,217.18,43.16355816]
[1731525109668,43.16355816,217.36,217.07,18.4272]
[1731525109669,4.6006,217.36,217.24,43.16355816]
[1731525109957,43.16355816,217.29,217.18,43.16355816]
[1731525110133,70.76745816,217.36,217.22,43.16355816]
[1731525110134,43.16355816,217.31,217.22,43.16355816]
[1731525111041,43.16355816,217.25,217.16,43.16355816]
[1731525111240,43.16355816,217.22,217.14,43.16355816]
[1731525111634,43.16355816,217.2,217.1,43.16355816]
[1731525111851,43.16355816,217.18,217.1,43.16355816]
[1731525112047,43.16355816,217.22,217.13,0.1]
[1731525112250,47.76625816,217.26,217.16,43.16355816]
[1731525112440,47.76625816,217.26,217.18,43.16355816]
[1731525112844,43.16355816,217.26,217.16,43.16355816]
[1731525113048,43.16355816,217.22,217.12,43.16355816]
[1731525113249,43.16355816,217.24,217.16,43.16355816]
[1731525113445,39.884284,217.29,217.15,0.1]
[1731525113446,43.16355816,217.28,217.2,43.16355816]
[1731525113643,4.6021,217.29,217.2,43.16355816]
[1731525113841,43.16355816,217.28,217.2,43.16355816]
[1731525114156,43.16355816,217.28,217.17,0.1]
[1731525114157,4.602,217.3,217.22,43.16355816]
[1731525114363,43.16355816,217.32,217.24,43.16355816]
[1731525114661,43.16355816,217.32,217.23,0.1]
[1731525114846,43.16355816,217.32,217.22,43.16355816]
[1731525115034,43.16355816,217.32,217.22,43.36355816]
[1731525115240,4.6011,217.34,217.26,43.16355816]
[1731525115447,4.6011,217.34,217.23,20.0]
[1731525115448,47.76465816,217.34,217.24,43.16355816]
[1731525115651,43.16355816,217.32,217.22,56.50745816]
[1731525115855,0.12549,217.41,217.22,56.50745816]
[1731525115856,43.16355816,217.36,217.28,43.26355816]
[1731525116057,0.12549,217.41,217.34,43.26355816]
[1731525116361,0.12549,217.41,217.29,0.92004821]
[1731525116362,0.12549,217.41,217.4,13.4257]
[1731525116541,0.12549,217.41,217.4,56.48925816]
[1731525116742,0.12549,217.41,217.4,56.58925816]
[1731525116961,0.12549,217.41,217.4,56.48925816]
[1731525117145,0.12549,217.41,217.38,43.16355816]
[1731525117556,0.12549,217.41,217.4,43.16355816]
[1731525117740,4.5998,217.4,217.32,43.16355816]
[1731525117947,4.5998,217.4,217.34,43.16355816]
[1731525118148,0.12549,217.41,217.39,43.16355816]
[1731525118459,0.12549,217.41,217.4,0.1]
[1731525118653,0.12549,217.41,217.4,0.2]
[1731525120156,4.5973,217.52,217.43,0.1]
[1731525120466,4.5973,217.52,217.49,43.16355816]
[1731525120669,4.5973,217.52,217.43,0.1]
[1731525120855,4.5973,217.52,217.44,43.16355816]
[1731525121158,4.5973,217.52,217.46,43.16355816]
[1731525121344,16.0904,217.52,217.44,43.16355816]
[1731525121738,43.16355816,217.49,217.35,0.1]
[1731525121962,43.16355816,217.47,217.39,43.16355816]
[1731525122346,16.0904,217.52,217.31,13.0346]
[1731525122347,0.12549,217.48,217.41,43.16355816]
[1731525122747,0.12549,217.48,217.43,43.16355816]
[1731525122959,0.12549,217.44,217.35,43.16355816]
[1731525123256,23.902374,217.38,217.29,43.16355816]
[1731525123459,0.12549,217.36,217.29,43.16355816]
[1731525123666,0.12549,217.34,217.27,43.16355816]
[1731525123843,0.12549,217.32,217.19,31.6681]
[1731525124043,0.12549,217.3,217.23,43.16355816]
[1731525124458,0.12549,217.26,217.19,43.16355816]
[1731525124856,0.12549,217.28,217.21,43.16355816]
[1731525125061,0.12549,217.29,217.21,43.16355816]
[1731525125360,4.6023,217.28,217.21,43.16355816]
[1731525125545,0.12549,217.27,217.21,43.16355816]
[1731525125749,4.6015,217.32,217.25,43.16355816]
[1731525126164,0.12549,217.31,217.25,43.16355816]
[1731525126961,0.12549,217.27,217.19,43.16355816]
[1731525127167,23.776884,217.24,217.06,12.9517]
[1731525127370,43.16355816,217.19,217.09,43.16355816]
[1731525127555,43.16355816,217.13,217.05,43.16355816]
[1731525127761,0.12549,217.14,216.97,12.8517]
[1731525127964,0.12549,217.14,216.93,31.2843]
[1731525128147,0.12549,217.16,216.97,0.1]
[1731525128349,0.099941,217.13,216.93,31.2843]
[1731525128669,0.099941,217.14,216.9,443.4703]
[1731525128853,4.6074,217.04,216.97,43.16355816]
[1731525129167,43.28904816,217.03,216.9,443.4703]
[1731525129361,43.28904816,217.03,216.96,43.16355816]
[1731525129565,4.6074,217.04,217.0,43.16355816]
[1731525130254,4.607,217.06,217.0,43.16355816]
[1731525130960,4.607,217.06,216.92,43.16355816]
[1731525130961,43.28904816,217.05,216.96,43.16355816]
[1731525131261,43.16355816,217.01,216.92,43.16355816]
[1731525131462,43.16355816,217.01,216.9,443.4703]
[1731525131671,43.16355816,217.01,216.91,43.16355816]
[1731525131847,43.16355816,217.01,216.93,43.16355816]
[1731525132260,43.16355816,217.03,216.95,43.16355816]
[1731525132451,66.94044216,217.05,216.95,43.16355816]
[1731525132768,23.25501957,217.06,217.01,43.16355816]
[1731525132769,11.73751957,217.06,217.01,43.16355816]
[1731525133004,23.776884,217.1,217.01,43.16355816]
[1731525133145,23.776884,217.1,216.95,0.1]
[1731525133146,4.6061,217.1,217.05,43.16355816]
[1731525133346,4.6055,217.13,217.07,43.16355816]
[1731525133761,4.6055,217.13,217.03,0.1]
[1731525133963,0.12549,217.19,217.11,43.16355816]
[1731525134163,0.12549,217.17,217.09,43.16355816]
[1731525134653,0.12549,217.17,217.03,43.16355816]
[1731525134654,47.76775816,217.19,217.1,43.16355816]
[1731525134855,43.16355816,217.15,217.06,43.16355816]
[1731525135055,43.16355816,217.13,217.04,43.16355816]
[1731525135350,43.16355816,217.11,217.02,43.16355816]
[1731525135672,43.16355816,217.09,216.98,43.16355816]
[1731525135873,43.16355816,217.05,216.96,43.16355816]
[1731525136055,0.12549,217.08,216.9,443.5703]
[1731525136056,43.16355816,217.01,216.92,43.16355816]
[1731525136769,43.16355816,217.01,216.9,443.4703]
[1731525137067,4.6087,216.98,216.92,43.16355816]
[1731525137265,43.16355816,216.97,216.9,443.4703]
[1731525137481,4.6083,217.0,216.92,43.16355816]
[1731525137991,43.16355816,216.99,216.9,486.63385816]
[1731525138151,4.6083,217.0,216.9,486.63385816]
[1731525138152,43.16355816,216.91,216.9,443.4703]
[1731525138470,87.06593216,216.91,216.9,443.4703]
[1731525138673,43.16355816,216.92,216.9,443.4703]
[1731525139049,4.6102,216.91,216.9,443.4703]
[1731525139549,4.6098,216.93,216.9,443.4703]
[1731525139754,43.16355816,216.92,216.9,443.4703]
[1731525140166,23.902374,216.91,216.9,443.4703]
[1731525140977,57.703441,217.0,216.9,443.4703]
[1731525140978,43.16355816,216.96,216.9,443.4703]
[1731525141268,4.6093,216.95,216.9,443.4703]
[1731525141775,43.16355816,216.92,216.9,443.4703]
[1731525142270,23.902374,216.91,216.9,443.4703]
[1731525143167,28.512574,216.91,216.9,443.4703]
[1731525143965,4.6102,216.91,216.9,443.4703]
[1731525144161,28.387084,216.91,216.9,443.4703]
[1731525144370,28.512574,216.91,216.9,438.4045]
[1731525144574,28.512574,216.91,216.9,383.6309]
[1731525144885,28.612574,216.91,216.9,218.99048742]
[1731525145085,71.77613216,216.91,216.9,195.22048742]
[1731525145288,71.77613216,216.91,216.9,137.60966817]
[1731525145459,107.38355255,216.91,216.9,65.66364769]
[1731525145659,0.1,216.74,216.54,55.16535816]
[1731525145976,43.16355816,216.64,216.54,55.16535816]
[1731525146293,43.16355816,216.7,216.54,55.16535816]